Cogmind - Beta 14 @@@ ROGUE MODE // 2025.01.01 @ 19:26:08 Player: Derk Result: Destroyed by H-88 Terminator with KE Penetrator Performance ------------- Evolutions (8) 4000 Regions Visited (20) 4000 Robots Destroyed (200) 1000 Value Destroyed (8957) 8957 Prototype IDs (34) 680 Alien Tech Used (0) 0 Bonus (4848) 4848 TOTAL SCORE: 23485 Bonus ------- High Alert Combat Kills 1827 Follower Combat Kills 1822 Forged Quantum Companion 1000 Registered with UFD 300 Met Data Miner 300 Met Warlord at Base 500 MAIN.C Attacked Warlord 500 Warlord Defense Kills 194 Friendly Fire -1595 Cogmind --------- Core Integrity 0/1450 Matter 285/300 Energy 51/100 System Corruption 27% Temperature Cool (0) Movement Core (50) Location -2/Research Parts ------- > --- POWER (2) -------- (None) > --- PROPULSION (6) --- (None) > --- UTILITY (12) ----- Spectral Analyzer Improved Melee Analysis Suite Improved System Shield > --- WEAPON (3) ------- Quantum Companion > --- INVENTORY (5) ---- Biometal Leg Thermal Barrier Overtuned Quantum Rifle Long-range Proton Cannon Overtuned Railgun Peak State ------------ > --- POWER ------------ Heavy Antimatter Reactor Micro Antimatter Reactor > --- PROPULSION ------- Armored Heavy Treads Centrium Heavy Treads Overtuned Huge Scrapsphere > --- UTILITY ---------- Scrap Suit Advanced Cooling System Huge Storage Unit Spectral Analyzer Surveybot 17 Chip Improved Transmission Jammer Hardened Heavy Armor Plating Thermal Barrier Advanced Remote Shield Improved Hacking Suite > --- WEAPON ----------- Overtuned Coil Gun Railgun Quantum Companion > --- INVENTORY -------- Light Antimatter Reactor Particle Reactor Micro Antimatter Reactor Vortex Chain Reactor Disposable Heat Sink Experimental Coolant Injector Deep Structural Scanner Advanced Terrain Scanner Improved Particle Charger Improved System Shield Long-range Tractor Beam Mapping Drone Bay Overtuned Beamcaster Vortex Rail Vortex Rail Long-range Proton Cannon Gamma Bomb Array Dirty Datajack [Rating: 169] Favorites ----------- Power Light Nuclear Core Engine Reinforced Deuterium Engine Power Core Light Nuclear Core Reactor Vortex Chain Reactor Propulsion Overtuned Huge Scrapsphere Treads Armored Treads Leg Biometal Leg Wheel Overtuned Huge Scrapsphere Utility High-capacity Storage Unit Device Disposable Heat Sink Storage High-capacity Storage Unit Processor Improved Targeting Computer Hackware Improved Hacking Suite Protection Hardened Heavy Armor Plating Weapon Precision Beam Rifle Energy Gun Precision Beam Rifle Energy Cannon Subdweller Beam Cannon Ballistic Gun Overtuned Coil Gun Launcher Improved Proton Missile Launcher Special Weapon CPS Tube Impact Weapon Heavy Mace Slashing Weapon Companion Sword Special Melee Weapon Datajack Build | -11 -10 -10 -10 -8 -8 -8 -8 -6 -6 -6 -6 -5 -5 -5 -5 -5 -4 -4 -3 -2 ------- Run | Yrd Mat Min Sub Mat Sto Rec Scr Fac Low Low Dat Pro Fac Upp Upp War Pro Fac Res Res Slots Evolved 16 | . . . . 4 . . . 4 . . . . 2 . . . . 2 2 2 Power 1 | . . . . . . . . 1 . . . . . . . . . . . . Propulsion 4 | . . . . 1 . . . 1 . . . . . . . . . . . 2 Utility 10 | . . . . 3 . . . 2 . . . . 2 . . . . 2 1 . Weapon 1 | . . . . . . . . . . . . . . . . . . . 1 . Parts Attached 306 | 8 7 13 12 12 13 3 10 22 9 6 . 10 25 6 6 12 15 25 24 68 Power 20 | 1 . 1 . 1 1 . . 2 1 . . 1 1 1 . 1 . . 3 6 Engine 3 | 1 . . . 1 . . . . 1 . . . . . . . . . . . Core 7 | . . 1 . . 1 . . 2 . . . 1 1 1 . . . . . . Reactor 10 | . . . . . . . . . . . . . . . . 1 . . 3 6 Propulsion 53 | 2 . 11 3 3 4 1 6 4 2 1 . . 3 . . . 4 1 2 6 Treads 24 | . . 5 1 2 3 . 4 1 2 1 . . . . . . 3 . 1 1 Leg 3 | . . . . . . . . . . . . . . . . . 1 . . 2 Wheel 26 | 2 . 6 2 1 1 1 2 3 . . . . 3 . . . . 1 1 3 Hover . | . . . . . . . . . . . . . . . . . . . . . Flight . | . . . . . . . . . . . . . . . . . . . . . Utility 147 | 2 1 1 4 3 4 2 3 7 4 3 . 5 10 2 5 8 10 19 14 40 Device 103 | 1 . . 3 1 3 . 1 2 3 2 . 3 5 1 4 7 7 17 10 33 Storage 5 | 1 1 . . . 1 . . . . . . . 1 . . . . . 1 . Processor 15 | . . . . . . 1 2 3 . . . 1 2 . . 1 1 1 . 3 Hackware 6 | . . . . . . . . 1 . . . . 1 . . . . 1 1 2 Protection 18 | . . 1 1 2 . 1 . 1 1 1 . 1 1 1 1 . 2 . 2 2 Artifact . | . . . . . . . . . . . . . . . . . . . . . Weapon 86 | 3 6 . 5 5 4 . 1 9 2 2 . 4 11 3 1 3 1 5 5 16 Energy Gun 34 | 2 2 . 1 3 1 . . 5 1 . . 1 3 1 . 3 . 3 1 7 Energy Cannon 6 | . . . 2 2 . . . . . . . . 1 . . . . . . 1 Ballistic Gun 23 | 1 2 . 2 . . . . . . 1 . 2 3 1 . . 1 2 2 6 Ballistic Cannon . | . . . . . . . . . . . . . . . . . . . . . Launcher 4 | . . . . . . . . . . . . . . . . . . . 2 2 Special Weapon 2 | . . . . . . . . . . . . 1 . 1 . . . . . . Impact Weapon 2 | . 1 . . . 1 . . . . . . . . . . . . . . . Slashing Weapon 14 | . . . . . 2 . 1 4 1 1 . . 4 . 1 . . . . . Piercing Weapon . | . . . . . . . . . . . . . . . . . . . . . Special Melee Weapon 1 | . 1 . . . . . . . . . . . . . . . . . . . Unidentified Prototypes 17 | . . . . 1 . . 1 . . . . . . . . 7 5 1 2 . Corrupted Parts 1 | . . . . . . . . . . . . . . . . . . . . 1 System Corruption 4 | . . . . . . . . . . . . . . . . . . . . 4 Parts Lost 55 | . . 1 1 . 5 . . . 1 . . 2 3 . 1 . . 2 2 37 Power 7 | . . . . . 1 . . . . . . . . . . . . . . 6 Propulsion 12 | . . 1 1 . 1 . . . 1 . . . 2 . . . . . . 6 Utility 29 | . . . . . 3 . . . . . . 1 1 . 1 . . 2 1 20 Weapon 7 | . . . . . . . . . . . . 1 . . . . . . 1 5 Highest Loss Streak 19 | . . 1 1 . 4 . . . 1 . . 1 2 . 1 . . 2 1 19 To Critical Strikes 3 | . . . . . . . . . 1 . . . . . . . . . . 2 Average Slot Usage (%) 87 | . 100 99 100 94 98 100 96 91 85 85 86 85 85 81 81 78 70 74 79 79 Engine 2 | . 14 9 . 5 6 . . . 4 6 6 6 5 5 5 3 . . . . Core 5 | . . 4 14 3 2 9 9 12 7 6 6 6 5 5 5 3 . . . . Reactor 1 | . . . . . . . . . . . . . . . . 1 5 5 8 7 Treads 9 | . . 13 26 3 10 9 19 13 12 13 13 13 2 . . . 3 5 4 3 Wheel 8 | . 28 14 1 23 16 18 7 11 6 6 6 6 11 11 11 11 6 5 4 7 Device 16 | . 14 8 11 18 20 23 18 11 17 19 13 12 12 16 16 22 12 16 19 20 Storage 7 | . 14 14 14 9 15 14 9 6 6 6 6 6 5 5 5 5 5 5 4 3 Processor 9 | . . . . . . 3 12 14 8 6 6 11 15 11 11 11 11 12 9 11 Hackware 3 | . . . . . . . . 3 6 6 6 1 4 5 5 5 5 8 7 5 Protection 3 | . . 5 2 12 9 3 2 2 . . 6 5 6 5 4 . 4 5 3 2 Energy Gun 5 | . 7 . 2 9 13 9 9 8 6 6 6 . 1 4 5 3 . 1 2 3 Ballistic Gun 3 | . 19 28 16 5 . . . . . 3 . 5 2 . 4 . 4 3 5 4 Slashing Weapon 4 | . . . . . 1 9 9 4 5 2 6 6 3 4 . 5 5 4 4 4 Peak Build Rating 169 | 7 10 11 14 29 33 27 47 68 73 73 71 75 86 88 88 121 124 144 154 169 Average Rating 74 | 5 8 9 12 23 28 26 38 58 70 72 71 72 79 86 85 98 114 137 149 152 On Entrance 61 | . 7 9 11 14 29 27 26 46 68 71 71 71 73 86 85 81 114 119 140 145 Naked Turns . | . . . . . . . . . . . . . . . . . . . . . Heaviest Build 160 | 13 51 52 58 70 67 55 60 75 87 86 86 91 102 96 96 105 116 122 160 160 Greatest Support 80 | 26 26 40 40 56 36 36 68 32 20 20 20 20 40 40 40 40 80 80 20 60 Greatest Overweight (x) 7 | . 1 1 3 1 3 3 3 4 4 4 4 4 5 2 2 2 5 6 7 7 Average Overweight (x) 2 | . . 1 1 1 1 1 1 2 3 4 4 4 2 2 1 1 3 4 5 4 Largest Inventory Capacity 25 | 8 20 20 20 20 20 20 20 20 20 20 20 20 20 20 20 20 20 20 25 25 Average Capacity 20 | 7 19 20 20 20 20 20 20 20 20 20 20 20 20 20 20 20 20 20 21 24 Most Carried 23 | 6 18 20 20 20 20 20 20 20 20 20 20 20 20 20 20 20 20 20 21 23 Average Carried 19 | 4 11 19 19 19 19 19 19 18 19 19 20 18 19 19 19 19 19 19 19 18 Final Capacity 25 | 8 20 20 20 20 20 20 20 20 20 20 20 20 20 20 20 20 20 20 25 5 Final Carried 21 | 6 18 20 20 20 20 20 20 20 20 20 20 19 20 20 20 20 20 19 21 5 Class Distribution -------------------- 30% | Scavenger-Scrapper 23% | Commander-Mutant 20% | Mutant 8% | Scavenger-Mutant 6% | Hacker-Assassin 4% | Scrapper Dominant Class ---------------- Mutant | -10/Materials Mutant | -10/Mines Mutant | -10/Subcaves Mutant | -8/Materials Mutant | -8/Storage Commander-Mutant | -8/Recycling Commander-Mutant | -8/Scraptown Mutant | -6/Factory Scavenger-Scrapper | -6/Lower Caves Scavenger-Scrapper | -6/Lower Caves Scavenger-Scrapper | -6/Data Miner Scavenger-Scrapper | -5/Proximity Caves Scavenger-Scrapper | -5/Factory Scavenger-Scrapper | -5/Upper Caves Scavenger-Scrapper | -5/Upper Caves Scavenger-Scrapper | -5/Warlord Scrapper | -4/Proximity Caves Hacker-Assassin | -4/Factory Hacker-Assassin | -3/Research Scavenger-Mutant | -2/Research Resources | -11 -10 -10 -10 -8 -8 -8 -8 -6 -6 -6 -6 -5 -5 -5 -5 -5 -4 -4 -3 -2 ----------- Run | Yrd Mat Min Sub Mat Sto Rec Scr Fac Low Low Dat Pro Fac Upp Upp War Pro Fac Res Res Matter Collected 5694 | 286 91 335 207 185 279 10 412 734 100 58 . 225 308 77 119 120 226 380 549 993 Remotely 894 | . . . . . 104 10 . . . . . . . . . . . 207 . 573 Salvage Created 11141 | 125 196 454 247 374 407 68 . 556 497 80 . 312 1053 274 395 117 461 1089 1359 3077 Parts 539 | 6 6 12 19 22 20 2 . 26 15 4 . 15 42 14 18 6 17 51 80 164 Haulers Intercepted 2 | . . . . . . . . . . . . . . . . . . 2 . . Recyclers Shooed 7 | . . 2 . . . . . 1 . . . . 1 . . . . 1 1 1 Parts Field Recycled . | . . . . . . . . . . . . . . . . . . . . . Retrieved Matter . | . . . . . . . . . . . . . . . . . . . . . Parts Self-Destructed 119 | . . . 12 . . . . . 35 4 . 12 . 21 18 . 17 . . . Prevented 9 | . . . . . . . . . . . . . . 4 . . 5 . . . Kills | -11 -10 -10 -10 -8 -8 -8 -8 -6 -6 -6 -6 -5 -5 -5 -5 -5 -4 -4 -3 -2 ------- Run | Yrd Mat Min Sub Mat Sto Rec Scr Fac Low Low Dat Pro Fac Upp Upp War Pro Fac Res Res Combat Hostiles Destroyed 144 | . 4 7 7 6 7 . . 7 4 3 . 7 10 4 7 2 7 10 16 36 Melee 22 | . . . . . . . . . 1 . . 1 3 . 2 1 3 4 3 4 Guns 95 | . 4 7 5 4 7 . . 7 3 3 . 4 5 4 5 . 4 5 9 19 Cannons 17 | . . . 2 2 . . . . . . . . 1 . . 1 . 1 2 8 AOE 4 | . . . . . . . . . . . . . . . . . . . 2 2 Classes Destroyed 22 | 3 3 . 2 3 . . . 1 2 1 . . 1 1 1 1 . 1 . 2 Worker 15 | 1 . . . . 2 . . 2 . . . . 2 . . . . 3 2 3 Builder 8 | . . . . 1 . . . 1 . . . . . . . . . . 1 5 Tunneler 3 | 2 . . . . . . . . . . . . . . . . . 1 . . Hauler 2 | . . . . . . . . . . . . . . . . . . 2 . . Recycler 12 | 1 1 3 . . . 1 . 1 . . . . 2 . . . . 1 . 2 Minesweeper 3 | . . . . . . . . . . . . . . 2 . . 1 . . . Operator 2 | . 1 . . . . . . . . . . . . . . . . . . 1 Drone 3 | . . . . . . . . . . 1 . 2 . . . . . . . . Watcher 7 | . . . . 1 . . . 1 . . . . 1 . . . . 1 2 1 Swarmer 22 | . 3 3 2 . . . . 2 1 3 . . . 1 2 . 5 . . . Grunt 50 | . 1 4 . 4 6 . . 3 . . . 2 7 1 3 1 . 3 5 10 Brawler 5 | . . . . 1 . . . . . . . 1 . . . . . . . 3 Duelist 1 | . . . . . . . . . . . . . . . 1 . . . . . Protector 1 | . . . . . . . . . . . . . . . . 1 . . . . Sentry 12 | . . . 1 1 1 . . 1 . . . . . 1 1 . 1 . 2 3 Specialist 2 | . . . . . . . . . . . . . . . . . . . . 2 Hunter 11 | . . . . . . . . . 2 . . 2 1 . . . . 1 1 4 Programmer 30 | . . . . . . . . 1 . . . . 2 1 . . 1 5 8 12 Heavy 2 | . . . . . . . . . . . . . . . . . . . . 2 Behemoth 1 | . . . . . . . . . 1 . . . . . . . . . . . Subdweller 4 | . . . 4 . . . . . . . . . . . . . . . . . Scrapoid 5 | . . . . . . . . . . . . . 1 . . . . 2 2 . Best Kill Streak 7 | 3 5 3 2 6 4 1 . 4 2 3 . 2 4 1 4 2 3 3 3 7 Combat Bots Only 6 | . 3 3 2 5 3 . . 1 2 3 . 2 3 1 4 2 3 2 3 6 Max Kills in Single Turn 3 | 1 2 1 1 1 1 1 . 1 1 1 . 1 1 1 2 1 1 1 2 3 Gunslinging 1 | . 1 . . . . . . . . . . . . . 1 . . . 1 1 Exploded 1 | . . . . . . . . . . . . . . . . . . . 1 1 Melee 1 | . . . . . . . . . 1 . . 1 1 . 1 1 1 1 1 1 Uniques/NPCs Destroyed . | . . . . . . . . . . . . . . . . . . . . . Combat | -11 -10 -10 -10 -8 -8 -8 -8 -6 -6 -6 -6 -5 -5 -5 -5 -5 -4 -4 -3 -2 -------- Run | Yrd Mat Min Sub Mat Sto Rec Scr Fac Low Low Dat Pro Fac Upp Upp War Pro Fac Res Res Hostile Shots Fired 1074 | . 22 39 56 21 62 . . 59 38 13 . 73 34 5 43 . 59 81 93 376 Missed 313 | . 6 14 20 3 16 . . 26 15 5 . 15 9 1 12 . 14 21 21 115 Deflected 12 | . . . . . . . . . . . . . . . . . 2 3 3 4 Damage Taken 15058 | . 152 303 517 348 756 . . 520 313 126 . 1004 551 161 611 73 996 1026 1362 6239 Core 2600 | . 39 76 95 110 93 . . 95 72 18 . 61 104 11 35 . 146 104 83 1458 Absorbed by Shields 909 | . . . . . . . . . . . . . . . . . 156 175 179 399 Reduced by Siege Mode 36 | . . . . . . . . . . . . . . . . . . 4 . 32 Ignored by Resistances 580 | . . . . . . . . . . . . . . . 36 . . . 57 487 Regen/Repaired (Parts) 1121 | . . . . 136 . . . 1 51 . . 20 11 . 10 62 49 134 638 9 Core Remaining (%) 71 | 100 . . 16 . . . 63 . . . . 71 . . . . 70 90 93 . Volleys Fired 542 | 16 19 30 22 29 20 2 . 38 21 13 . 50 34 24 15 . 23 38 47 101 Largest 2 | 2 2 2 2 2 2 1 . 2 2 2 . 1 2 2 2 . 1 2 2 2 Hottest 201 | 60 65 40 100 122 122 61 . 161 161 132 . 100 132 132 132 . 45 72 72 201 Shots Fired 828 | 32 38 61 43 40 41 2 . 61 26 15 . 51 45 28 22 . 23 41 86 173 Gun 783 | 32 38 61 38 29 41 2 . 61 26 15 . 48 33 27 22 . 23 41 83 163 Cannon 35 | . . . 5 11 . . . . . . . . 12 . . . . . . 7 Launcher 6 | . . . . . . . . . . . . . . . . . . . 3 3 Special 4 | . . . . . . . . . . . . 3 . 1 . . . . . . Kinetic 387 | 16 23 61 34 10 . . . . . 2 . 29 22 4 7 . 19 15 62 83 Thermal 307 | 10 9 . 5 30 41 2 . 61 26 13 . 22 11 23 15 . . . . 39 Explosive . | . . . . . . . . . . . . . . . . . . . . . Electromagnetic 41 | 6 6 . 4 . . . . . . . . . 12 . . . . . 3 10 Entropic 92 | . . . . . . . . . . . . . . . . . 4 26 21 41 Robot Hit Streak 40 | 7 10 8 16 11 38 40 . 11 7 2 . 11 13 7 6 . 6 5 10 15 Robot Miss Streak 6 | 1 2 4 4 4 1 . . 2 2 6 . 5 3 4 1 . 3 5 4 4 Penetration Max 2 | . . . . . . . . . . . . . 1 . 1 . . 1 2 1 Secondary Targets 13 | . 1 . 1 . 3 . . . . . . . 1 . 1 . . . 2 4 Max Gunslinging Chain 1 | . 1 . 1 . 1 . . . . . . . 1 . 1 . . . 1 1 Autonomous 39 | . . . . . . . . . . . . . . . . 1 2 4 5 27 Shots Hit Robots 678 | 22 29 39 29 27 42 3 . 48 22 5 . 30 49 21 24 1 29 55 65 138 Core Hits 330 | 7 8 18 13 17 18 . . 23 11 4 . 13 21 9 11 2 15 21 38 81 Critical Kills 6 | . . . . . . . . . . . . 1 1 . . . . . 1 3 Critical Parts Destroyed 13 | . . . . 1 . . . . . . . 2 . . . . . 1 3 6 Critical Strikes 44 | 1 . . . 4 4 . . 2 1 1 . 6 2 2 3 . 1 1 4 12 Burn 20 | . . . . 3 3 . . 2 1 1 . 3 1 2 3 . . . . 1 Destroy 16 | . . . . 1 . . . . . . . 3 1 . . . 1 1 3 6 Corrupt 1 | 1 . . . . . . . . . . . . . . . . . . . . Sever 1 | . . . . . 1 . . . . . . . . . . . . . . . Detonate 4 | . . . . . . . . . . . . . . . . . . . 1 3 Melee Attacks 281 | . 2 . . . 7 1 . 27 9 3 . 5 39 7 10 1 22 63 34 51 Impact 5 | . 1 . . . 4 . . . . . . . . . . . . . . . Slashing 275 | . . . . . 3 1 . 27 9 3 . 5 39 7 10 1 22 63 34 51 Piercing . | . . . . . . . . . . . . . . . . . . . . . Sneak Attacks 37 | . 1 . . . 1 1 . 3 . . . . 13 2 . . 2 8 3 3 Combat Hostiles . | . . . . . . . . . . . . . . . . . . . . . Follow-up Attacks 1 | . . . . . . . . . . . . . . . . . 1 . . . Damage Inflicted 29360 | 209 336 489 440 513 778 90 . 1278 856 168 . 793 2316 681 806 174 1790 3770 4202 9671 Guns 14145 | 209 304 489 383 313 675 32 . 826 349 168 . 717 617 491 489 . 491 1173 2076 4343 Cannons 4073 | . . . 57 200 . . . . . . . . 280 . . 95 180 368 462 2431 Explosions 2011 | . 32 . . . . . . . . . . . . . . . . . 673 1306 Melee 9089 | . . . . . 103 58 . 452 507 . . 34 1419 190 317 79 1119 2229 991 1591 Ramming . | . . . . . . . . . . . . . . . . . . . . . Kinetic 5991 | 110 168 489 331 64 . . . . . 34 . 326 488 81 163 . 363 322 1272 1780 Thermal 6221 | 45 95 . 57 449 675 32 . 826 349 134 . 433 129 410 326 . . . 374 1887 Explosive . | . . . . . . . . . . . . . . . . . . . . . Electromagnetic 1303 | 54 73 . 52 . . . . . . . . . 280 . . . . . 299 545 Impact . | . . . . . . . . . . . . . . . . . . . . . Slashing 9089 | . . . . . 103 58 . 452 507 . . 34 1419 190 317 79 1119 2229 991 1591 Piercing . | . . . . . . . . . . . . . . . . . . . . . Entropic 3255 | . . . . . . . . . . . . . . . . . 128 851 804 1472 Phasic 3501 | . . . . . . . . . . . . . . . . 95 180 368 462 2396 Highest Corruption 27 | . 2 2 2 . 1 1 . . . . . 2 2 2 2 3 . 10 10 27 Average Corruption 3 | . 2 2 2 . 1 1 . . . . . 1 1 2 2 2 . 7 2 5 Corruption Purged . | . . . . . . . . . . . . . . . . . . . . . Corruption Blocked . | . . . . . . . . . . . . . . . . . . . . . Effects 141 | . 5 8 10 . 2 . . . . . . 11 6 8 6 1 . 39 11 34 Message Errors 28 | . 2 1 3 . . . . . . . . 2 2 2 1 . . 10 1 4 Matter Fused 34 | . 1 3 . . 1 . . . . . . 1 2 1 . . . 10 5 10 Heat Flow Errors 11 | . . . . . . . . . . . . 1 . 1 . 1 . 3 2 3 Energy Discharges 22 | . . . 4 . . . . . . . . 1 1 1 1 . . 12 . 2 Parts Rejected 3 | . . . . . . . . . . . . . . . . . . 1 1 1 Parts Fused 2 | . . 1 . . . . . . . . . . . . . . . . . 1 Data Loss (minor) 19 | . . 1 3 . . . . . . . . 1 1 3 3 . . 2 1 4 Data Loss (major) 7 | . 1 1 . . . . . . . . . 4 . . . . . . . 1 Misfires 7 | . . 1 . . 1 . . . . . . 1 . . 1 . . 1 1 1 Alerts 2 | . 1 . . . . . . . . . . . . . . . . . . 1 Misdirections 3 | . . . . . . . . . . . . . . . . . . . . 3 Weapon Failures 3 | . . . . . . . . . . . . . . . . . . . . 3 Overload Shots . | . . . . . . . . . . . . . . . . . . . . . Overflow Damage 2023 | . . . . . . 18 . 136 156 . . . 156 29 47 . 18 319 445 699 Projectiles 609 | . . . . . . . . . . . . . 22 . . . . 96 229 262 Explosions 142 | . . . . . . . . . . . . . . . . . . . 65 77 Melee 1272 | . . . . . . 18 . 136 156 . . . 134 29 47 . 18 223 151 360 Knockbacks . | . . . . . . . . . . . . . . . . . . . . . Impact . | . . . . . . . . . . . . . . . . . . . . . Kinetic . | . . . . . . . . . . . . . . . . . . . . . Secondary . | . . . . . . . . . . . . . . . . . . . . . Self-Inflicted Damage 65 | . . . . . . . . . . . . . . . . . . . 9 56 Shots 5 | . . . . . . . . . . . . . . . . . . . 1 4 Rammed . | . . . . . . . . . . . . . . . . . . . . . Targets Rammed . | . . . . . . . . . . . . . . . . . . . . . Kicked . | . . . . . . . . . . . . . . . . . . . . . Crushed . | . . . . . . . . . . . . . . . . . . . . . Highest Temperature 419 | 40 94 2 . 195 199 . . 204 236 248 . 270 132 419 243 107 58 212 280 303 Average Temperature 87 | 18 39 2 . 86 110 . . 84 108 154 . 111 44 122 101 54 26 59 79 84 Received Heat Transfer 2117 | . 54 138 57 144 441 . . 162 . . . 72 162 18 199 . 78 65 129 398 Effects 4 | . . . . . . . . . . . . . . 2 2 . . . . . Shutdowns 2 | . . . . . . . . . . . . . . 2 . . . . . . Interference 2 | . . . . . . . . . . . . . . . 2 . . . . . Siege Activations 5 | . . . . . . . . . . . . . . . . . . 1 . 4 Total Turns 47 | . . . . . . . . . . . . . . . . . . 12 . 35 Longest Duration 18 | . . . . . . . . . . . . . . . . . . 12 . 18 Robots Corrupted 4 | . . . . . . . . . . . . . 1 . . . . . . 3 Combat Hostiles 4 | . . . . . . . . . . . . . 1 . . . . . . 3 Parts Fried 12 | . . . . . . . . . . . . . 1 . . 2 . . . 9 Impact Corruptions . | . . . . . . . . . . . . . . . . . . . . . Robots Melted 2 | . . . . . . . . . . . . 2 . . . . . . . . Combat Hostiles 2 | . . . . . . . . . . . . 2 . . . . . . . . Parts Melted 23 | . . . 1 4 4 . . 3 . . . . . 1 3 . . 3 1 3 Heat Transferred 11598 | 100 200 . 74 1073 1702 74 . 1815 735 350 . 1190 285 900 850 . . . 250 2000 Parts Sabotaged . | . . . . . . . . . . . . . . . . . . . . . Parts Stolen . | . . . . . . . . . . . . . . . . . . . . . Parts Stripped . | . . . . . . . . . . . . . . . . . . . . . Power Chain Reactions 7 | . 1 . . . . . . . . . . . . . . . . . 5 1 Alert | -11 -10 -10 -10 -8 -8 -8 -8 -6 -6 -6 -6 -5 -5 -5 -5 -5 -4 -4 -3 -2 ------- Run | Yrd Mat Min Sub Mat Sto Rec Scr Fac Low Low Dat Pro Fac Upp Upp War Pro Fac Res Res Peak Influence 1329 | 20 187 201 . 219 301 100 . 299 . . . . 843 . . . . 285 626 1329 Initial 450 | . 13 11 . . 92 58 . . . . . . 450 . . . . 2 149 351 Average 326 | 5 73 121 . 61 135 89 . 96 . . . . 506 . . . . 81 297 990 Maximum Alert Level 4 | . . 1 . 1 1 . . 1 . . . . 3 . . . . 1 2 4 Low Security (%) 54 | 100 100 79 . 95 87 100 . 85 . . . . . . . . . 95 22 . Level 1 16 | . . 20 . 4 12 . . 14 . . . . 30 . . . . 4 53 3 Level 2 10 | . . . . . . . . . . . . . 42 . . . . . 23 7 Level 3 12 | . . . . . . . . . . . . . 26 . . . . . . 52 Level 4 6 | . . . . . . . . . . . . . . . . . . . . 36 Level 5 . | . . . . . . . . . . . . . . . . . . . . . High Security . | . . . . . . . . . . . . . . . . . . . . . Max Security . | . . . . . . . . . . . . . . . . . . . . . Squads Dispatched 42 | . 2 . . . . . . 8 . . . . 5 . 1 . . 5 5 16 Investigation 11 | . 2 . . . . . . 1 . . . . 2 . . . . 2 3 1 Extermination 14 | . . . . . . . . 2 . . . . 3 . . . . 3 2 4 Reinforcement 5 | . . . . . . . . 2 . . . . . . . . . . . 3 Assault 6 | . . . . . . . . . . . . . . . 1 . . . . 5 Garrison 6 | . . . . . . . . 3 . . . . . . . . . . . 3 Intercept . | . . . . . . . . . . . . . . . . . . . . . Searches Triggered 1 | . . . . . . . . . . . . . 1 . . . . . . . Data Miner Redirects 5 | . . . . . . . . . . . . . . . . . . 1 1 3 Construction Impeded . | . . . . . . . . . . . . . . . . . . . . . Haulers Reinforced . | . . . . . . . . . . . . . . . . . . . . . Active Scanning Responses . | . . . . . . . . . . . . . . . . . . . . . Cargo Convoy Interrupts 1 | . . . . . . . . . . . . . . . . . . . . 1 Stealth | -11 -10 -10 -10 -8 -8 -8 -8 -6 -6 -6 -6 -5 -5 -5 -5 -5 -4 -4 -3 -2 --------- Run | Yrd Mat Min Sub Mat Sto Rec Scr Fac Low Low Dat Pro Fac Upp Upp War Pro Fac Res Res Distress Signals 10 | . . . . . 1 . . 2 . . . . 1 . . 3 . . . 3 Communications Jammed 45 | . . . . . . . . . . . . . 9 . . . 1 12 1 22 Distress Signals 37 | . . . . . . . . . . . . . 9 . . . 1 12 1 14 Times Spotted 303 | . 12 6 9 18 14 1 . 23 14 4 . 13 22 8 9 19 10 23 24 74 Peak Tracking Total 19 | . 3 2 3 4 7 1 . 4 4 3 . 4 5 3 10 10 3 3 5 19 Tactical Retreats 18 | . 1 . . 2 3 . . 4 . 1 . . 1 . 2 1 . 1 1 1 Traps | -11 -10 -10 -10 -8 -8 -8 -8 -6 -6 -6 -6 -5 -5 -5 -5 -5 -4 -4 -3 -2 ------- Run | Yrd Mat Min Sub Mat Sto Rec Scr Fac Low Low Dat Pro Fac Upp Upp War Pro Fac Res Res Traps Triggered 14 | . 3 . . . 1 . . 1 . . . . . . . 1 . 3 2 3 Indirectly 3 | . . . . . . . . . . . . . . . . . . . 1 2 Trap Hack Attempts 14 | . 14 . . . . . . . . . . . . . . . . . . . Triggered . | . . . . . . . . . . . . . . . . . . . . . Disarmed 2 | . 2 . . . . . . . . . . . . . . . . . . . Reprogrammed . | . . . . . . . . . . . . . . . . . . . . . Reused . | . . . . . . . . . . . . . . . . . . . . . Traps Extracted . | . . . . . . . . . . . . . . . . . . . . . Installed 13 | . . . . . . . . . . . . . . 11 . . 2 . . . Triggered 12 | . . . . . . . . . . . . . . 2 . 8 1 . . 1 Most Traps Carried 4 | . . . . . . . . . . . . . . 4 3 3 . . . . Machines | -11 -10 -10 -10 -8 -8 -8 -8 -6 -6 -6 -6 -5 -5 -5 -5 -5 -4 -4 -3 -2 ---------- Run | Yrd Mat Min Sub Mat Sto Rec Scr Fac Low Low Dat Pro Fac Upp Upp War Pro Fac Res Res Machines Disabled 24 | . . . . . . . . 2 . . . 1 9 . 1 . . 1 3 7 Max in Single Turn 2 | . . . . . . . . . . . . 1 1 . . . . . 1 2 Garrison Access 2 | . . . . . . . . . . . . . . . . . . . 1 1 Machines Repaired . | . . . . . . . . . . . . . . . . . . . . . Machines Dismantled . | . . . . . . . . . . . . . . . . . . . . . Machines Sabotaged . | . . . . . . . . . . . . . . . . . . . . . Overloaded Fab Kills . | . . . . . . . . . . . . . . . . . . . . . Hacking | -11 -10 -10 -10 -8 -8 -8 -8 -6 -6 -6 -6 -5 -5 -5 -5 -5 -4 -4 -3 -2 --------- Run | Yrd Mat Min Sub Mat Sto Rec Scr Fac Low Low Dat Pro Fac Upp Upp War Pro Fac Res Res Machines Accessed 68 | . 5 . . 5 1 . 8 6 1 . 4 1 7 1 1 7 . 6 8 7 Terminals 26 | . 5 . . 4 1 . . 3 . . . . 3 . . . . 2 3 5 Fabricators 2 | . . . . . . . . 1 . . . . 1 . . . . . . . Repair Stations 5 | . . . . 1 . . . . . . . . . . . . . 2 2 . Recycling Units 7 | . . . . . . . . 1 . . . . 2 . . . . 2 1 1 Scanalyzers 2 | . . . . . . . . . . . . . 1 . . . . . 1 . Garrison Access 3 | . . . . . . . . 1 . . . . . . . . . . 1 1 Total Hacks 216 | . 12 . . 14 2 . 54 19 1 . 31 1 20 1 1 17 . 11 19 13 Successful 157 | . 3 . . 8 1 . 54 6 1 . 31 1 10 1 1 17 . 6 12 5 Failed 59 | . 9 . . 6 1 . . 13 . . . . 10 . . . . 5 7 8 Catastrophic 13 | . . . . 2 . . . 3 . . . . 1 . . . . . 2 5 Database Lockouts . | . . . . . . . . . . . . . . . . . . . . . Manual 59 | . 10 . . 8 3 . . 10 . . . . 6 . . 1 . 7 4 10 Terminals 64 | . 12 . . 12 2 . . 10 . . . . 6 . . . . 4 9 9 Fabricators 5 | . . . . . . . . 3 . . . . 2 . . . . . . . Repair Stations 10 | . . . . 2 . . . . . . . . . . . . . 4 4 . Recycling Units 14 | . . . . . . . . 4 . . . . 3 . . . . 3 1 3 Scanalyzers 12 | . . . . . . . . . . . . . 9 . . . . . 3 . Garrison Access 5 | . . . . . . . . 2 . . . . . . . . . . 2 1 Terminal Hacks 120 | . 1 . . 5 . . 54 3 1 . 31 1 1 1 1 17 . . 3 1 Record 74 | . . . . . . . 48 1 . . 11 1 1 . . 12 . . . . Part Schematic 11 | . . . . . . . . . . . 11 . . . . . . . . . Robot Schematic 6 | . . . . . . . . . . . 6 . . . . . . . . . Robot Analysis 5 | . . . . . . . 5 . . . . . . . . . . . . . Prototype ID Bank 7 | . . . . . . . . . . . 3 . . . . 4 . . . . Open Door 5 | . . . . . . . 1 . 1 . . . . 1 1 1 . . . . Branch Access Points 2 | . . . . 1 . . . . . . . . . . . . . . 1 . Emergency Access Points 1 | . . . . 1 . . . . . . . . . . . . . . . . Machine Index 1 | . . . . . . . . . . . . . . . . . . . 1 . Unreport Threat 2 | . . . . . . . . 1 . . . . . . . . . . . 1 Locate Traps 2 | . . . . 1 . . . . . . . . . . . . . . 1 . Zone Layout 4 | . 1 . . 2 . . . 1 . . . . . . . . . . . . Fabricator Hacks 1 | . . . . . . . . 1 . . . . . . . . . . . . Build 1 | . . . . . . . . 1 . . . . . . . . . . . . Repair Station Hacks 9 | . . . . 2 . . . . . . . . . . . . . 3 4 . Scan Component 5 | . . . . 1 . . . . . . . . . . . . . 2 2 . Repair 4 | . . . . 1 . . . . . . . . . . . . . 1 2 . Recycling Unit Hacks . | . . . . . . . . . . . . . . . . . . . . . Scanalyzer 8 | . . . . . . . . . . . . . 7 . . . . . 1 . Insert Component 5 | . . . . . . . . . . . . . 4 . . . . . 1 . Analyze 3 | . . . . . . . . . . . . . 3 . . . . . . . Garrison Access Hacks 2 | . . . . . . . . . . . . . . . . . . . 1 1 Seal Access 2 | . . . . . . . . . . . . . . . . . . . 1 1 Unauthorized Hacks 17 | . 2 . . 1 1 . . 2 . . . . 2 . . . . 3 3 3 Terminals 12 | . 2 . . 1 1 . . 2 . . . . . . . . . 1 2 3 Track 2 | . 1 . . . . . . 1 . . . . . . . . . . . . Assimilate 1 | . . . . 1 . . . . . . . . . . . . . . . . Botnet 8 | . 1 . . . 1 . . 1 . . . . . . . . . 1 2 2 Operators 1 | . . . . . . . . . . . . . . . . . . . . 1 Fabricators . | . . . . . . . . . . . . . . . . . . . . . Repair Stations 5 | . . . . . . . . . . . . . 2 . . . . 2 1 . Recycling Units . | . . . . . . . . . . . . . . . . . . . . . Scrapoids 5 | . . . . . . . . . . . . . 2 . . . . 2 1 . Scanalyzers . | . . . . . . . . . . . . . . . . . . . . . Garrison Access . | . . . . . . . . . . . . . . . . . . . . . Data Cores Recovered 2 | . 1 . . . . . . . . . . . . . . . . . . 1 Used 1 | . . . . . . . . . . . . . . . . . . . . 1 Hacking Detections 38 | . 5 . . 5 1 . . 6 . . . . 6 . . . . 5 5 5 Full Trace Events 3 | . . . . . . . . 1 . . . . . . . . . . 1 1 Feedback Events . | . . . . . . . . . . . . . . . . . . . . . Feedback Blocked . | . . . . . . . . . . . . . . . . . . . . . Robot Schematics Acquired 6 | . . . . . . . . . . . 6 . . . . . . . . . Robots Built 3 | . . . . . . . . 3 . . . . . . . . . . . . Authchips . | . . . . . . . . . . . . . . . . . . . . . Time 134 | . . . . . . . . 134 . . . . . . . . . . . . Total Robot Build Rating 12 | . . . . . . . . 12 . . . . . . . . . . . . Part Schematics Acquired 13 | . . . . . . . . . . . 11 . 2 . . . . . . . Parts Built . | . . . . . . . . . . . . . . . . . . . . . Authchips . | . . . . . . . . . . . . . . . . . . . . . Time . | . . . . . . . . . . . . . . . . . . . . . Total Part Build Rating . | . . . . . . . . . . . . . . . . . . . . . Parts Repaired 4 | . . . . 1 . . . . . . . . . . . . . 1 2 . Time 186 | . . . . 26 . . . . . . . . . . . . . 68 92 . Parts Recycled . | . . . . . . . . . . . . . . . . . . . . . Recycled Matter . | . . . . . . . . . . . . . . . . . . . . . Retrieved Matter . | . . . . . . . . . . . . . . . . . . . . . Retrieved Components . | . . . . . . . . . . . . . . . . . . . . . Parts Scanalyzed 4 | . . . . . . . . . . . . . 3 . . . . . 1 . Part Schematics Acquired 2 | . . . . . . . . . . . . . 2 . . . . . . . Parts Damaged . | . . . . . . . . . . . . . . . . . . . . . Bothacking | -11 -10 -10 -10 -8 -8 -8 -8 -6 -6 -6 -6 -5 -5 -5 -5 -5 -4 -4 -3 -2 ------------ Run | Yrd Mat Min Sub Mat Sto Rec Scr Fac Low Low Dat Pro Fac Upp Upp War Pro Fac Res Res Used RIF Installer . | . . . . . . . . . . . . . . . . . . . . . Robots Hacked 1 | . 1 . . . . . . . . . . . . . . . . . . . Non-combat 1 | . 1 . . . . . . . . . . . . . . . . . . . Combat . | . . . . . . . . . . . . . . . . . . . . . Robot Hacks Applied 1 | . 1 . . . . . . . . . . . . . . . . . . . find_recycling 1 | . 1 . . . . . . . . . . . . . . . . . . . Relay Couplers Released . | . . . . . . . . . . . . . . . . . . . . . Fabnet Peak Effective % . | . . . . . . . . . . . . . . . . . . . . . Robots Rewired 1 | . . . . . . . . . . . . . . . 1 . . . . . Allies Hacked 2 | . . . . . . . . . . . . . . . . . 1 1 . . Hacks Repelled . | . . . . . . . . . . . . . . . . . . . . . Allies | -11 -10 -10 -10 -8 -8 -8 -8 -6 -6 -6 -6 -5 -5 -5 -5 -5 -4 -4 -3 -2 -------- Run | Yrd Mat Min Sub Mat Sto Rec Scr Fac Low Low Dat Pro Fac Upp Upp War Pro Fac Res Res Total Allies 45 | . . . . 1 10 . . 8 . . . . 10 . 1 . . 10 5 . Largest Group 10 | . . . . 1 10 10 10 10 . . . . 5 3 1 1 1 6 5 5 Highest-Rated Group 323 | . . . . 10 173 173 173 235 . . . . 241 138 47 30 30 285 323 320 Highest-Rated Ally 67 | . . . . 10 29 29 29 47 . . . . 50 50 47 30 30 50 67 64 Total Orders 40 | . . . . . . . . . 2 5 . 1 4 7 8 3 . 4 4 2 STAY 6 | . . . . . . . . . . . . . 2 . . . . 2 2 . FOLLOW 7 | . . . . . . . . . . . . . 2 . . 1 . 2 2 . EXPLORE 16 | . . . . . . . . . 1 4 . . . 5 4 1 . . . 1 RETURN 11 | . . . . . . . . . 1 1 . 1 . 2 4 1 . . . 1 Ally Attacks 398 | . . . . . . 5 . 131 . . . . 63 24 7 . 8 64 51 45 Total Damage 7739 | . . . . . . 77 . 2006 . . . . 1368 539 149 . 331 1366 855 1048 Kills 54 | . . . . . . 1 . 18 . . . . 15 4 . . 2 7 2 5 Allies Corrupted 4 | . . . . . . . . . . . . . . 1 . . 1 1 . 1 Allies Melted . | . . . . . . . . . . . . . . . . . . . . . Intel | -11 -10 -10 -10 -8 -8 -8 -8 -6 -6 -6 -6 -5 -5 -5 -5 -5 -4 -4 -3 -2 ------- Run | Yrd Mat Min Sub Mat Sto Rec Scr Fac Low Low Dat Pro Fac Upp Upp War Pro Fac Res Res Robot Analysis Total 5 | . . . . . . . 5 . . . . . . . . . . . . . Derelict Logs Recovered 17 | . . 2 . . . . 4 . 2 2 . 2 . 1 3 . 1 . . . Drone Launches 18 | . . . . . . . . . 1 4 . 1 . 5 4 1 . . . 2 Drone Recoveries 15 | . . . . . . . . . 1 3 . 1 . 5 3 1 . . . 1 Exploration | -11 -10 -10 -10 -8 -8 -8 -8 -6 -6 -6 -6 -5 -5 -5 -5 -5 -4 -4 -3 -2 ------------- Run | Yrd Mat Min Sub Mat Sto Rec Scr Fac Low Low Dat Pro Fac Upp Upp War Pro Fac Res Res Turns Passed 20271 | 117 537 483 1034 692 540 224 4078 1169 1512 312 86 835 1252 715 420 927 1006 1455 1294 1583 Spaces Moved 13838 | 60 412 233 403 481 273 157 2681 754 1356 248 79 640 953 677 359 894 787 793 739 859 Core 26 | 2 . . . . . . . . . . . . . . . . . . . 24 Treads 1888 | . . 75 372 . . . 1373 . . . . . . . . . 9 49 . 10 Legs 1 | . . . . . . . . . . . . . . . . . . . . 1 Wheels 11923 | 58 412 158 31 481 273 157 1308 754 1356 248 79 640 953 677 359 894 778 744 739 824 Hover . | . . . . . . . . . . . . . . . . . . . . . Flight . | . . . . . . . . . . . . . . . . . . . . . Fastest Speed 50 | 50 90 105 117 117 117 117 109 100 100 110 110 110 90 90 80 80 80 120 110 50 Average Speed 119 | 89 103 152 230 117 122 122 147 118 100 110 110 110 102 90 88 82 110 128 123 115 Slowest Speed 330 | 100 105 240 240 117 145 145 166 160 110 110 110 110 155 90 90 90 240 240 140 330 Overloaded Moves . | . . . . . . . . . . . . . . . . . . . . . Propulsion Burnouts . | . . . . . . . . . . . . . . . . . . . . . Robots Hopped . | . . . . . . . . . . . . . . . . . . . . . Cave-ins Triggered . | . . . . . . . . . . . . . . . . . . . . . Exploration Rate (%) 52 | 5 62 49 23 38 30 31 93 20 98 68 69 75 20 98 65 97 81 26 22 35 Regions Visited 20 Branch Regions 13 Pre-discovered Areas 11 | . . 1 . . . . 7 . . . 1 1 . . 1 . . . . . Known Exits Taken 12 | . . . . 1 . . 1 1 1 1 . 1 1 . 1 1 1 1 1 . Unknown Exits Taken 8 | 1 1 1 1 . 1 1 . . . . 1 . . 1 . . . . . . Scrap Searched 20 | . . 1 . . . . 5 . 4 3 . 1 . 2 2 . 2 . . . Spaces Dug 123 | . 1 . . 2 4 . . 18 3 3 . 2 12 1 2 . 1 29 19 26 Terrain Destroyed 398 | . 4 . 2 3 4 . . 21 6 6 . 36 21 10 3 . 24 45 58 155 Melee 118 | . 1 . . . 4 . . 18 2 3 . 2 12 1 . . 1 29 19 26 Projectile 226 | . . . 2 3 . . . 3 4 3 . 34 9 9 3 . 23 16 28 89 AOE 54 | . 3 . . . . . . . . . . . . . . . . . 11 40 Terrain Rammed . | . . . . . . . . . . . . . . . . . . . . . Walls Destroyed . | . . . . . . . . . . . . . . . . . . . . . Machines Disabled . | . . . . . . . . . . . . . . . . . . . . . Actions | -11 -10 -10 -10 -8 -8 -8 -8 -6 -6 -6 -6 -5 -5 -5 -5 -5 -4 -4 -3 -2 --------- Run | Yrd Mat Min Sub Mat Sto Rec Scr Fac Low Low Dat Pro Fac Upp Upp War Pro Fac Res Res Total 16485 | 90 480 301 466 574 429 185 2815 935 1474 273 78 733 1144 762 435 1091 884 1105 998 1233 Wait 1127 | 1 17 15 11 29 96 19 50 60 66 1 . 23 67 20 37 156 24 173 132 130 Move 13818 | 59 411 232 402 480 272 156 2680 753 1355 247 78 639 952 676 358 893 786 792 738 859 Hop . | . . . . . . . . . . . . . . . . . . . . . Pick Up 166 | 6 8 5 7 13 12 2 34 12 6 2 . 3 13 9 3 6 2 6 7 10 Fast Attach 74 | 7 2 . 3 1 2 . 5 3 1 . . 1 5 . . 10 8 5 7 14 Attach 73 | . . 1 1 4 4 . 3 7 2 1 . 3 5 2 2 2 . 5 5 26 Detach 27 | . 2 . 3 . . . . 2 . . . . . . . 4 2 2 1 11 Swap 159 | 1 5 12 8 7 7 3 2 12 6 5 . 6 15 4 4 . 7 15 12 28 Drop 175 | . . 6 9 11 9 2 41 13 7 1 . 3 14 9 4 19 11 6 7 3 Fire 542 | 16 19 30 22 29 20 2 . 38 21 13 . 50 34 24 15 . 23 38 47 101 Melee 278 | . 2 . . . 7 1 . 27 9 3 . 5 39 7 10 1 19 63 34 51 Ram . | . . . . . . . . . . . . . . . . . . . . . Kick . | . . . . . . . . . . . . . . . . . . . . . Crush . | . . . . . . . . . . . . . . . . . . . . . Escape Stasis 16 | . . . . . . . . 8 . . . . . . . . . . 8 . Rewire 2 | . . . . . . . . . . . . . . . 2 . . . . . Trap 27 | . 14 . . . . . . . . . . . . 11 . . 2 . . . Miscellaneous 1 | . . . . . . . . . 1 . . . . . . . . . . . Route ------- -11/Scrapyard -10/Materials (discovered 2 exits: [*Mat] / [*Min]) -10/Mines (discovered 3 exits: [*Mat] / [*Exi] / [*Sub]) -10/Subcaves -8/Materials -8/Storage -8/Recycling -8/Scraptown (discovered 2 exits: *Fac x2) -6/Factory (discovered 5 exits: Fac x3 / *Low x2) -6/Lower Caves -6/Lower Caves (discovered 2 exits: Fac / *Dat) -6/Data Miner -5/Proximity Caves -5/Factory (discovered 2 exits: *Upp x2) -5/Upper Caves -5/Upper Caves (discovered 2 exits: *Fac / *War) -5/Warlord -4/Proximity Caves -4/Factory (discovered 3 exits: *Res / Upp / Arm) -3/Research (discovered 4 exits: *Res x2 / Qua x2) -2/Research (discovered 1 exit: Tes) History --------- Turn | Location | Event 16 | -11/Scrapyard | Discovered new exit (range 16) 118 | -11/Scrapyard | Entered Materials 208 | -10/Materials | Discovered new exit (range 3) 315 | -10/Materials | Build established: Mutant 454 | -10/Materials | Discovered new exit (range 13) 655 | -10/Materials | Entered Mines 712 | -10/Mines | Discovered new exit (range 16) 1021 | -10/Mines | Deemed a non-threat by the Exiles lab entrance 1021 | -10/Mines | Discovered new exit (range 5) 1085 | -10/Mines | Learned Materials garrison access intel 1117 | -10/Mines | Discovered new exit (range 10) 1126 | -10/Mines | Learned location of Storage (-8) 1138 | -10/Mines | Entered Subcaves 1506 | -10/Subcaves | Core integrity fell below 50% 1874 | -10/Subcaves | Discovered new exit (range 15) 2127 | -10/Subcaves | Core integrity fell below 20% 2172 | -10/Subcaves | Entered Materials 2172 | -8/Materials | Evolved 4 slots: Propulsion x1, Utility x3 2173 | -8/Materials | Loaded intel: 1 garrison access location 2221 | -8/Materials | Repaired Lgt. Treads 2394 | -8/Materials | Build established: Scavenger-Mutant 2738 | -8/Materials | Build established: Mutant 2756 | -8/Materials | Identified exit to Storage 2864 | -8/Materials | Entered Storage 3271 | -8/Storage | Lost 4 parts (1p1n2u) 3320 | -8/Storage | Used back door to open Recycling access 3320 | -8/Storage | Discovered new exit (range 5) 3331 | -8/Storage | Assisted by bots powering up and referring to "LRC-V3" 3404 | -8/Storage | Entered Recycling 3404 | -8/Recycling | Accompanied by 10 allies 3586 | -8/Recycling | Scanned before Scraplab entrance 3602 | -8/Recycling | Entered Scraplab 3611 | -8/Recycling | Discovered new exit (range 3) 3628 | -8/Recycling | Entered Scraptown 3628 | -8/Scraptown | Accompanied by 10 allies 3628 | -8/Scraptown | System corruption cleaned by C-Scrubber 3632 | -8/Scraptown | Build established: Commander-Mutant 3712 | -8/Scraptown | Visited UFD Registry 3712 | -8/Scraptown | Registered with UFD as "Rustbay" 3728 | -8/Scraptown | Visited CR-KLE's Repair Center 3740 | -8/Scraptown | Visited Fellowship of the Rings 3774 | -8/Scraptown | Heard Great Nut preacher, LISTEN AND RECITE! 3789 | -8/Scraptown | Visited Cyclists 3805 | -8/Scraptown | Entered Cyclist Reading Room 3839 | -8/Scraptown | Visited The Evicted 3879 | -8/Scraptown | Visited Spacefarers 3961 | -8/Scraptown | Visited Symbiants 4047 | -8/Scraptown | Visited Red Mages 4239 | -8/Scraptown | Scanned Subdweller tech in exchange for log data 4247 | -8/Scraptown | Learned location of Quarantine (-3) 4249 | -8/Scraptown | Learned Research terminal intel 4252 | -8/Scraptown | Learned location of Testing (-2) 4830 | -8/Scraptown | Discovered new exit (range 13) 4992 | -8/Scraptown | Guru changed UFD alias to "Hardninja" 5252 | -8/Scraptown | Visited Sword Containment 5332 | -8/Scraptown | Visited Derelict Rescue Squad 5343 | -8/Scraptown | Found DRS Beacon 5375 | -8/Scraptown | Visited Abandonware Association 5402 | -8/Scraptown | Learned abandonware demo "TRNCOAT.EXE" 5674 | -8/Scraptown | Visited Junk Repository 5923 | -8/Scraptown | Visited Analyses Database 5958 | -8/Scraptown | Visited Scrapoid Research Area 6075 | -8/Scraptown | Visited Junk Repository 6157 | -8/Scraptown | Visited Scrapoid Pod Storage 6168 | -8/Scraptown | Found Scrapoid Pod 6201 | -8/Scraptown | Visited Cartography Club 6254 | -8/Scraptown | Found Surveybot 17 Chip 6655 | -8/Scraptown | Learned location of Zion (-7) 6655 | -8/Scraptown | Learned location of Archives (-6) 6655 | -8/Scraptown | Learned 12 Materials zone layouts 6655 | -8/Scraptown | Learned 20 Factory zone layouts 6655 | -8/Scraptown | Learned 8 Research zone layouts 6655 | -8/Scraptown | Learned 4 Access zone layouts 6655 | -8/Scraptown | Learned 4 Mines zone layouts 6655 | -8/Scraptown | Learned 16 Proximity Caves zone layouts 6655 | -8/Scraptown | Learned 4 Armory zone layouts 6655 | -8/Scraptown | Learned Materials emergency access door positions 6655 | -8/Scraptown | Learned location of 2 exits from Research 6655 | -8/Scraptown | Learned location of 2 exits from Lower Caves 6655 | -8/Scraptown | Learned location of 3 exits from Lower Caves 6655 | -8/Scraptown | Identified exit to Factory 6810 | -8/Scraptown | Found Deep Structural Scanner 7634 | -8/Scraptown | Found Scrap Suit 7706 | -8/Scraptown | Entered Factory 7706 | -6/Factory | Accompanied by 10 allies 7706 | -6/Factory | Evolved 4 slots: Power x1, Propulsion x1, Utility x2 7707 | -6/Factory | Identified exit to Factory 7708 | -6/Factory | Identified exit to Lower Caves 7816 | -6/Factory | Lost 6 allies 8000 | -6/Factory | Garrison activated, responded to threat 8215 | -6/Factory | Scrapoid Pod released 06F07-D (x5) 8343 | -6/Factory | Build established: Mutant 8643 | -6/Factory | Fabricated B-48 Gladiator? 8875 | -6/Factory | Entered Lower Caves 8876 | -6/Lower Caves | Identified exit to Lower Caves 8876 | -6/Lower Caves | Activated DRS Beacon 8878 | -6/Lower Caves | Encountered a Warlord checkpoint 8959 | -6/Lower Caves | Spotted B-75 Beast 9207 | -6/Lower Caves | Destroyed B-75 Beast 9271 | -6/Lower Caves | Learned Factory interactive machine intel 9509 | -6/Lower Caves | Build established: Scavenger-Scrapper 9742 | -6/Lower Caves | Learned Factory trap positions 10130 | -6/Lower Caves | Ambushed by wild Derelicts 10387 | -6/Lower Caves | Entered another Lower Caves area 10388 | -6/Lower Caves | Identified exit to Data Miner 10424 | -6/Lower Caves | Learned Factory stockpile data 10633 | -6/Lower Caves | Encountered a Warlord checkpoint 10699 | -6/Lower Caves | Entered Data Miner 10699 | -6/Data Miner | Discovered new exit (range 6) 10720 | -6/Data Miner | Met Data Miner 10742 | -6/Data Miner | Learned location of Section 7 (-2) 10742 | -6/Data Miner | Acquired the access code to Warlord's prototype stash 10761 | -6/Data Miner | Received God Mode back door access code from Data Miner 10785 | -6/Data Miner | Entered Proximity Caves 10939 | -5/Proximity Caves | Spotter reported a threat 10985 | -5/Proximity Caves | Spotter reported a threat 11098 | -5/Proximity Caves | Ambushed by research squad 11237 | -5/Proximity Caves | Found Alien Artifact 11324 | -5/Proximity Caves | Spotter reported a threat 11410 | -5/Proximity Caves | Learned location of Warlord (-5) 11620 | -5/Proximity Caves | Entered Factory 11620 | -5/Factory | Evolved 2 slots: Utility x2 11621 | -5/Factory | Identified exit to Upper Caves 11622 | -5/Factory | Loaded intel: 86 trap records 11624 | -5/Factory | Loaded intel: 52 interactive machine locations 11835 | -5/Factory | Identified Dimensional Node Initializer 11920 | -5/Factory | Search patrols dispatched 12123 | -5/Factory | Scrapoid reinforcements arrived 12191 | -5/Factory | Build established: Scavenger-Mutant 12192 | -5/Factory | Discovered exit to Upper Caves (range 17) 12343 | -5/Factory | Found Scrap Suit 12654 | -5/Factory | Build established: Scavenger-Scrapper 12672 | -5/Factory | Scrapoids reinforcements arrived? 12717 | -5/Factory | Lost 3 allies 12872 | -5/Factory | Entered Upper Caves 12872 | -5/Upper Caves | Accompanied by 3 allies 13446 | -5/Upper Caves | Discovered new exit (range 74) 13572 | -5/Upper Caves | Attracted the attention of an 0b10 checkpoint 13587 | -5/Upper Caves | Entered another Upper Caves area 13587 | -5/Upper Caves | Accompanied by 1 ally 13588 | -5/Upper Caves | Encountered a Warlord checkpoint 13588 | -5/Upper Caves | Identified exit to Warlord 13588 | -5/Upper Caves | Identified exit to Factory 13908 | -5/Upper Caves | Attracted the attention of an 0b10 outpost 14007 | -5/Upper Caves | Entered Warlord 14007 | -5/Warlord | Accompanied by 1 ally 14008 | -5/Warlord | Forged Quantum Companion 14008 | -5/Warlord | Identified exit to Proximity Caves 14128 | -5/Warlord | System corruption cleaned by Quarantine Array 14156 | -5/Warlord | Learned Armory security intel 14156 | -5/Warlord | Learned Research security intel 14156 | -5/Warlord | Learned Testing security intel 14156 | -5/Warlord | Learned Quarantine security intel 14157 | -5/Warlord | Learned 4 Testing zone layouts 14157 | -5/Warlord | Learned 4 Quarantine zone layouts 14159 | -5/Warlord | Learned Quarantine emergency access door positions 14403 | -5/Warlord | Received a Watcher feed algorithm from an ecstatic Tinkerer 14435 | -5/Warlord | Warlord's base attacked by MAIN.C 14582 | -5/Warlord | Found Prototype Energy Gun 14582 | -5/Warlord | Identified Vortex Rail 14585 | -5/Warlord | Found Vortex Rail 14589 | -5/Warlord | Found Prototype Energy Gun 14591 | -5/Warlord | Found Prototype Energy Gun 14649 | -5/Warlord | Rebuked by Warlord 14657 | -5/Warlord | Opened Warlord's prototype stash 14661 | -5/Warlord | Found Prototype Reactor 14661 | -5/Warlord | Identified Vortex Chain Reactor 14671 | -5/Warlord | Found Prototype Device 14671 | -5/Warlord | Identified Exp. Phase Shifter 14678 | -5/Warlord | Found Prototype Hackware 14683 | -5/Warlord | Found Prototype Processor 14683 | -5/Warlord | Identified Exp. Core Analyzer 14686 | -5/Warlord | Found Prototype Device 14686 | -5/Warlord | Identified Thermal Barrier 14785 | -5/Warlord | Warlord forces counterattacked 14901 | -5/Warlord | Lost 4 allies 14934 | -5/Warlord | Entered Proximity Caves 14934 | -4/Proximity Caves | Accompanied by 1 ally 14936 | -4/Proximity Caves | Attracted the attention of an 0b10 checkpoint 15016 | -4/Proximity Caves | Spotted B-86 Titan 15051 | -4/Proximity Caves | Allies destroyed B-86 Titan 15307 | -4/Proximity Caves | Found Prototype Processor 15307 | -4/Proximity Caves | Identified Spectral Analyzer 15569 | -4/Proximity Caves | Build established: Scrapper 15919 | -4/Proximity Caves | Discovered exit to Factory (range 19) 15940 | -4/Proximity Caves | Entered Factory 15940 | -4/Factory | Evolved 2 slots: Utility x2 15941 | -4/Factory | Identified exit to Research 15941 | -4/Factory | Identified exit to Upper Caves 15941 | -4/Factory | Identified exit to Armory 16141 | -4/Factory | Repaired Broken Adv. Remote Shield 16291 | -4/Factory | Spotted B-86 Titan 16597 | -4/Factory | Identified Vortex Rifle (x2) 16900 | -4/Factory | Scrapoid reinforcements arrived 16913 | -4/Factory | Found Scrap Suit 16917 | -4/Factory | Incoming investigation squad redirected 17191 | -4/Factory | P-70 Sage assimilated allied 04F18-D 17194 | -4/Factory | System corruption reached 10% 17313 | -4/Factory | Scrapoid reinforcements arrived 17364 | -4/Factory | Lost 3 allies 17395 | -4/Factory | Entered Research 17395 | -3/Research | Accompanied by 3 allies 17395 | -3/Research | Evolved 2 slots: Utility x1, Weapon x1 17396 | -3/Research | Identified exit to Research 17399 | -3/Research | Loaded intel: 22 terminal locations 17415 | -3/Research | Identified Ghost Barrier 17831 | -3/Research | Build established: Hacker-Assassin 17889 | -3/Research | Found Gamma Bomb Array 17954 | -3/Research | Repaired Hrd. Heavy Armor Plating 18095 | -3/Research | Repaired Corrupted Ovr. Beamcaster 18482 | -3/Research | Identified exit to Quarantine 18593 | -3/Research | System corruption reached 10% 18623 | -3/Research | Incoming investigation squad redirected 18630 | -3/Research | Scrapoid reinforcements arrived 18689 | -3/Research | Entered another Research area 18689 | -2/Research | Accompanied by 5 allies 18689 | -2/Research | Evolved 2 slots: Propulsion x2 18690 | -2/Research | Identified exit to Testing 18750 | -2/Research | Found Scrap Suit 18808 | -2/Research | Lost 5 allies 19026 | -2/Research | Build established: Scavenger-Scrapper 19217 | -2/Research | First assault squad dispatched 19310 | -2/Research | Lost 3 parts (3u) 19338 | -2/Research | System corruption reached 10% 19346 | -2/Research | Garrison activated, responded to threat 19377 | -2/Research | Lost 4 parts (1p1n2u) 19506 | -2/Research | Incoming assault squad redirected 19711 | -2/Research | Incoming assault squad redirected 19780 | -2/Research | Build established: Scavenger-Mutant 20025 | -2/Research | Cargo convoy interrupted 20119 | -2/Research | Lost 4 parts (1p3u) 20260 | -2/Research | Incoming assault squad redirected 20262 | -2/Research | Core integrity fell below 50% 20267 | -2/Research | Core integrity fell below 20% 20272 | -2/Research | Destroyed by H-88 Terminator with KE Penetrator Last Messages --------------- Quantum Companion: "See, why do you need ranged weapons when you have me?" Quantum Companion releases a shadow of itself that zips off towards H-88 Terminator. 20266_ Penetrated by Slug. 20267_ G=OO,H |1K H,,FAXUICUF4HGWRKVRGFCTAK2E 20267_ Penetrated by Slug. 20267_ Slug penetrates Wall. Quantum Companion releases a shadow of itself that zips off towards H-88 Terminator. 20268_ Slug penetrates Wall. 20268_ Penetrated by Slug. 20269_ Slug penetrates Wall. Quantum Companion releases a shadow of itself that zips off towards H-88 Terminator. 20270_ Destroyed Unknown Device. 20270_ Penetrated by Slug. 20270_ Slug penetrates Wall. 20271_ M-36 Artificer repairs G-73 Enforcer. 20272_ Penetrated by Slug. 20272_ Slug penetrates Wall. Map ----- +----------------------------------------------------+ | ?????????????????????????????????????????????????? | | ?????????????????????????????????????????????????? | | ?????????????????????????????????????????????????? | | ?????????????????????????????????????????????????? | | ?????????????????????????????????????????????????? | | ?????????????????????????????????????????????????? | | ?????????????????????????????????????????????????? | | ?????????????????????????????????????????????????? | | ?????????????????????????????????????????????????? | | ???????????????????H????#+####???????????????????? | | ???????????????????????? #???????????????????? | | ???????????????????????? #???????????????????? | | ???????????????????????? #???????????????????? | | ???????????????????????? #???????????????????? | | ????????????????????????# #???????????????????? | | ????????????????????????# #???????????????????? | | ????????????????????????# #???????????????????? | | ????????????????????????+ #???????????????????? | | ????????????????????????#k #???????????????????? | | ????????????????????????# #???????????????????? | | ????????????????????????# #???????????????????? | | ????????????????????????# #???????????????????? | | ????????????????????????# #???????????????????? | | ????????????????????????# #???????????????????? | | ????????????????????????# #???????????????????? | | ????????????????????????#@ #???????????????????? | | ???????????###########??# +???????????????????? | | ???????????# ??# #???????????????????? | | ???????????# * ?# #???????????????????? | | ???????????? ?# #???????????????????? | | ????????????? """ """ # #####+###########/#?? | | ????????????? """ """ # ? | | ????????????? """ """ + ? | | ????????????? """ """ # ? | | ????????????? """ """ # ? | | ???????????? ?# h ###+#######??? | | ???????????# ?# # ?????????? | | ???????????# ??# h """# ?????????? | | ???????????# ??#k """# ?????????? | | ???????????##########???#!! """# ?????????? | | ????????????????????????#!! F"# ?????????? | | ????????????????????????# hh """# ??????? | | ?????????????????????#### w"" # ??????? | | ?????????????????????#### gg # ??????? | | ?????????????????????#### g #######??????? | | ###################??#### m l | | ######################### gm ### | | #########################h! i### ? | | #########################/g[ ### ? | | ### ###########!##### ############?? | +----------------------------------------------------+ Best States ------------- Heat Dissipation 80 Coolant Potential 170 Energy Generation 55 Energy Capacity 700 Matter Stores 450 Matter Capacity 450 Sight Range 24 Terrain Scan Range 20 Terrain Scan Density 1210 Jamming Range 14 Corruption Containment 12 Armor Coverage 1200 Resistance: TH 50 Evasion (%) 50 Targeting Accuracy 8 Melee Accuracy 8 Recoil Reduction 3 Particle Charging 20 Salvage Targeting 4 Offensive Hacking 24 Defensive Hacking 24 Authchip Count 1 Item Schematics ----------------- Combat Drone Bay | -6/Data Miner | Free Lgt. Regenerative Plating | -6/Data Miner | Free Cld. Gravmag System | -6/Data Miner | Free Exp. Heat Sink | -6/Data Miner | Free Hvy. Proton Missile Launcher | -6/Data Miner | Free Myomer Leg | -6/Data Miner | Free Adv. Transmission Jammer | -6/Data Miner | Free Hyp. Mass Driver | -6/Data Miner | Free Graphene Brace | -6/Data Miner | Free Adv. Corruption Screen | -6/Data Miner | Free Particle Reactor | -6/Data Miner | Free Imp. Hacking Suite | -5/Factory | Scanalyzed Mapping Drone Bay | -5/Factory | Scanalyzed Robot Schematics ------------------ B-48 Gladiator | -6/Data Miner | Free C-35 Carver | -6/Data Miner | Free R-10 Processor | -6/Data Miner | Free A-15 Conveyor | -6/Data Miner | Free B-60 Warrior | -6/Data Miner | Free I-47 Archangel | -6/Data Miner | Free Fabricated ------------ B-48 Gladiator | x3 | -6/Factory | Preloaded Alien Tech Used ----------------- None Achievements -------------- None Challenges ------------ None Game ------ Seed WeldingRiotCompressor Manual? 0 Play Time 04:51:55 Cumulative 376.0 hours Start 2024.12.31 @ 20:35:19 End 2025.01.01 @ 19:26:08 Sessions 7 Manual Loads 0 Difficulty Rogue Special Mode None Game No. 157 Rogue 157 Adventurer 0 Explorer 0 Win Type - Total 12 Types 10/0/1/1/0/0/0/0/0 Lore% 67 Gallery% 78 Achievement% 67 Wizard Run 0 Options --------- Layout 0 ASCII 0 Keyboard 0 Movement Numpad Keybinds 0 Fullscreen 1 Font 24/Smallcaps Map View 76x50 Zoom Use 0% Tactical HUD 1 Map Filters NONE Filters NONE Steam 1 RUN: 5e3b8c89-ea79-4a28-8bbc-feb6a7de9796